bitfinex-derivatives/quotes_ETHF0:USTF0_20250110
["timestamp","ask_amount","ask_price","bid_price","bid_amount"]
[1736528505646,0.4605,3250.8,3250.4,0.30769]
[1736528505647,0.3077,3250.5,3250.4,0.30769]
[1736528506556,0.4605,3250.8,3250.3,40.8]
[1736528506856,0.30767,3250.7,3250.6,0.30767]
[1736528507352,0.30769,3250.6,3250.5,0.30768]
[1736528507953,0.4605,3250.8,3250.3,40.8]
[1736528508254,0.3077,3250.5,3250.4,0.30768]
[1736528508851,0.3077,3250.4,3250.3,41.1077]
[1736528509458,0.30769,3250.5,3250.4,0.30768]
[1736528509950,0.30769,3250.5,3250.3,40.8]
[1736528509951,0.4605,3250.8,3250.3,40.8]
[1736528510256,0.76817,3250.8,3250.7,0.30767]
[1736528510756,0.4605,3250.8,3250.7,0.30767]
[1736528510949,0.30765,3250.9,3250.8,0.30766]
[1736528511148,3.2078,3251.1,3250.5,2.40131899]
[1736528511358,3.51539,3251.5,3250.9,0.76913]
[1736528511652,0.30762,3251.3,3251.2,0.30761]
[1736528511852,0.30761,3251.4,3251.3,0.3076]
[1736528512055,3.2078,3251.5,3251.0,0.4401]
[1736528512258,3.2078,3251.5,3250.8,3.2078]
[1736528512259,0.76902,3251.4,3250.8,3.2078]
[1736528512460,1.21122,3251.4,3250.8,3.2078]
[1736528512651,0.4422,3251.4,3250.8,3.2078]
[1736528512848,0.30762,3251.3,3251.2,0.30761]
[1736528513054,0.74981,3251.4,3251.3,0.30761]
[1736528513261,0.4422,3251.4,3251.3,0.30761]
[1736528513453,0.30757,3251.8,3251.2,3.97686]
[1736528513655,0.30754,3252.1,3252.0,0.30754]
[1736528513858,10.81471891,3252.2,3251.7,2.40131899]
[1736528514054,10.81471891,3252.2,3252.1,0.30753]
[1736528514365,0.4783,3252.5,3252.0,5.60911899]
[1736528514557,0.4783,3252.5,3252.0,3.2078]
[1736528514763,0.30753,3252.2,3252.1,40.8]
[1736528515665,3.51533,3252.2,3252.1,40.8]
[1736528515862,0.76885,3252.1,3251.1,3.2078]
[1736528516062,0.30761,3251.3,3251.2,0.30761]
[1736528516769,0.30761,3251.4,3251.3,0.30761]
[1736528517062,0.4545,3251.6,3251.1,3.2078]
[1736528517364,0.30762,3251.2,3251.1,3.51543]
[1736528517564,0.30762,3251.2,3251.1,3.2078]
[1736528517760,0.4545,3251.6,3250.8,0.918]
[1736528517957,0.4545,3251.6,3250.7,3.2078]
[1736528517958,1.07668,3251.2,3250.7,0.30766]
[1736528518159,0.4335,3251.1,3250.3,3.2078]
[1736528518461,0.30765,3250.9,3250.8,0.30765]
[1736528519358,0.30767,3250.7,3250.4,0.3077]
[1736528519566,0.30766,3250.8,3250.7,0.30766]
[1736528519866,0.30767,3250.8,3250.7,0.30766]
[1736528520361,0.30765,3250.9,3250.8,0.30765]
[1736528520567,0.30766,3250.9,3250.8,0.30765]
[1736528520866,0.30765,3250.9,3250.8,0.30765]
[1736528521063,3.2078,3251.3,3250.4,2.9083902]
[1736528521266,3.2078,3251.3,3251.2,0.30762]
[1736528521573,3.2078,3251.3,3251.2,41.10762]
[1736528522067,0.30758,3251.7,3251.6,0.30757]
[1736528522266,3.2078,3252.5,3251.4,3.2078]
[1736528522463,3.2078,3252.5,3251.8,3.2078]
[1736528522464,0.4778,3252.4,3251.8,3.2078]
[1736528522766,0.4778,3252.4,3251.9,0.4401]
[1736528523067,0.4778,3252.4,3252.1,0.30753]
[1736528523068,0.30753,3252.2,3252.1,0.30753]
[1736528523366,0.30754,3252.1,3252.0,0.30754]
[1736528523569,0.4778,3252.4,3251.9,0.74765]
[1736528523570,0.30754,3252.0,3251.9,0.74765]
[1736528523760,0.4778,3252.4,3251.8,3.2078]
[1736528523966,0.30755,3252.0,3251.9,0.30755]
[1736528524365,3.2078,3252.1,3251.4,0.4401]
[1736528524564,0.76893,3251.8,3250.7,0.76917]
[1736528524765,4.3373902,3252.0,3250.5,3.2078]
[1736528524766,0.30765,3250.9,3250.8,0.74775]
[1736528525072,0.30767,3250.7,3250.6,41.10768]
[1736528525274,3.2078,3250.7,3250.3,0.3077]
[1736528525566,0.3077,3250.4,3250.2,0.30771]
[1736528525768,0.30771,3250.3,3250.2,41.10771]
[1736528526071,3.2078,3250.7,3250.2,40.8]
[1736528526369,0.30767,3250.7,3250.6,0.30767]
[1736528526574,0.30767,3250.7,3250.3,0.4469]
[1736528526575,0.30769,3250.5,3250.4,0.30769]
[1736528526869,0.30768,3250.6,3250.5,0.30768]
[1736528527274,0.3077,3250.4,3250.3,0.3077]
[1736528527474,0.30769,3250.5,3250.4,0.30769]
[1736528527671,0.3077,3250.4,3250.3,0.3077]
[1736528527868,3.97695,3250.9,3250.2,40.8]
[1736528527869,0.30771,3250.3,3250.2,40.8]
[1736528528065,0.30771,3250.3,3250.2,41.10771]
[1736528528469,0.30771,3250.3,3250.2,40.8]
[1736528530368,0.30775,3249.9,3249.8,0.30775]
[1736528530569,3.2078,3250.1,3249.4,0.8707]
[1736528530774,0.30777,3249.6,3249.5,41.10778]
[1736528530964,0.30777,3249.7,3249.5,40.8]
[1736528531168,3.2078,3250.1,3249.5,40.8]
[1736528531370,0.30776,3249.8,3249.6,0.30776]
[1736528531571,3.2078,3250.1,3249.5,40.8]
[1736528531777,3.2078,3250.1,3249.7,0.30776]
[1736528532075,3.2078,3250.1,3249.5,40.8]
[1736528532272,0.30775,3249.9,3249.8,0.30775]
[1736528532868,3.2078,3250.1,3249.8,0.30775]
[1736528533071,3.51553,3250.1,3250.0,0.30773]
[1736528533667,3.2078,3250.1,3250.0,0.30773]
[1736528533981,0.8958,3250.4,3250.3,0.30771]
[1736528534283,1.2035,3250.4,3250.3,41.10771]
[1736528534471,1.2035,3250.4,3250.3,40.8]
[1736528534876,0.30775,3249.8,3249.6,3.2078]
[1736528535074,0.30777,3249.7,3249.6,0.30777]
[1736528535274,0.30777,3249.7,3249.2,3.2078]
[1736528535275,3.2078,3250.3,3249.2,3.97731]
[1736528535474,0.30775,3249.8,3249.7,40.8]
[1736528535973,5.40709,3250.3,3249.7,41.10776]
[1736528536179,0.30775,3249.9,3249.8,0.30775]
[1736528536776,4.6378,3250.3,3249.7,40.8]
[1736528536981,0.30775,3249.8,3249.7,40.8]
[1736528537480,3.51555,3249.9,3249.7,40.8]
[1736528537682,3.51555,3249.9,3249.8,0.30775]
[1736528538074,0.30775,3249.8,3249.7,40.8]
[1736528538275,3.2078,3249.9,3248.8,3.2078]
[1736528538476,0.30782,3249.1,3249.0,0.30782]
[1736528538673,0.30782,3249.1,3249.0,0.30783]
[1736528538879,0.30782,3249.1,3249.0,40.8]
[1736528540882,0.30782,3249.1,3248.6,0.30786]
[1736528540883,0.30788,3248.5,3248.4,0.30788]
[1736528541075,2.9083902,3248.8,3247.8,3.2078]
[1736528541277,3.6712,3249.0,3247.8,3.51573]
[1736528541278,0.30789,3248.3,3247.8,3.51573]
[1736528541474,0.30792,3248.0,3247.9,40.8]
[1736528542282,0.30792,3248.0,3247.3,3.2078]
[1736528542283,2.9083902,3248.0,3247.3,3.2078]
[1736528542474,3.97767,3247.8,3247.1,0.308]
[1736528542673,0.308,3247.3,3247.1,0.308]
[1736528542883,0.30805,3246.7,3246.4,0.30807]
[1736528543083,0.30806,3246.6,3246.4,0.30807]
[1736528543389,0.30806,3246.6,3246.5,40.8]
[1736528543681,0.3081,3246.2,3245.9,0.30812]
[1736528544384,0.30808,3246.4,3245.8,0.4593]
[1736528544585,3.2078,3246.5,3246.1,0.30809]
[1736528544886,0.30806,3246.6,3246.3,0.30808]
[1736528545087,0.30807,3246.5,3246.2,0.30809]
[1736528545385,3.3415902,3246.8,3245.8,0.4593]
[1736528545581,0.308,3247.2,3246.9,0.30802]
[1736528545784,3.2078,3247.3,3247.0,0.30802]
[1736528545980,0.308,3247.2,3246.9,0.30802]
[1736528546285,0.308,3247.2,3246.8,0.30803]
[1736528546480,0.308,3247.2,3246.9,0.30803]
[1736528546787,3.2078,3247.3,3246.6,3.2078]
[1736528546984,3.2078,3247.3,3247.2,0.308]
[1736528547184,2.9083902,3247.8,3247.2,40.8]
[1736528547480,0.30797,3247.6,3247.3,0.30798]
[1736528547685,0.30797,3247.6,3247.2,40.8]
[1736528547686,0.30796,3247.7,3247.4,0.30797]
[1736528547986,2.9083902,3247.8,3247.2,40.8]
[1736528548384,2.9083902,3247.8,3247.4,0.30797]
[1736528548780,0.30796,3247.7,3247.2,40.8]
[1736528548983,1.429,3247.9,3247.6,0.30796]
[1736528549183,1.73694,3247.9,3247.6,0.30796]
[1736528549380,0.30795,3247.8,3247.5,0.30797]
[1736528549983,0.30795,3247.8,3247.3,3.2078]
[1736528550189,0.30795,3247.7,3247.4,0.30797]
[1736528550389,0.30795,3247.8,3247.5,0.30797]
[1736528550686,0.30799,3247.3,3247.2,40.8]
[1736528550892,0.30802,3247.0,3246.9,3.2078]
[1736528551192,0.30801,3247.1,3246.9,3.51583]
[1736528551489,0.30801,3247.1,3247.0,40.8]
[1736528552080,3.51581,3247.1,3247.0,40.8]
[1736528552285,3.2078,3247.1,3246.5,0.30806]
[1736528552484,0.30805,3246.7,3246.5,0.30806]
[1736528552688,0.30805,3246.7,3246.6,40.8]
[1736528553385,3.2078,3247.1,3246.6,40.8]
[1736528553787,0.4327,3247.2,3246.6,40.8]
[1736528553991,0.30801,3247.2,3247.0,0.30801]
[1736528554191,0.308,3247.2,3247.0,0.30801]
[1736528554590,0.308,3247.3,3247.0,0.30801]
[1736528554893,1.429,3247.4,3247.3,0.30799]
[1736528555086,3.2078,3247.6,3246.7,6.1161902]
[1736528555291,0.30795,3247.8,3247.5,0.30796]
[1736528555488,3.51572,3248.1,3247.9,0.30793]
[1736528555792,3.2078,3248.1,3247.6,41.10796]
[1736528555994,0.30795,3247.7,3247.6,40.8]
[1736528556294,3.2078,3248.1,3247.6,40.8]
[1736528556490,3.2078,3248.1,3247.7,0.30794]
[1736528556693,3.2078,3248.1,3247.6,40.8]
[1736528556694,3.2078,3248.1,3248.0,0.30792]
[1736528557085,3.2078,3249.1,3247.9,3.2078]
[1736528557390,2.9083902,3249.4,3248.9,0.30784]
[1736528557391,0.4792,3249.4,3248.9,0.30784]
[1736528557893,0.30779,3249.5,3248.9,0.30784]
[1736528558089,0.3078,3249.4,3248.9,0.30784]
[1736528558794,0.30778,3249.5,3248.9,41.10784]
[1736528558988,3.51557,3249.6,3248.9,41.10784]
[1736528559183,0.4348,3249.9,3248.9,41.10784]
[1736528559184,0.30775,3249.9,3249.7,0.30776]
[1736528559397,3.2078,3250.1,3249.2,3.2078]
[1736528559696,0.30779,3249.5,3249.3,0.30779]
[1736528559893,0.30777,3249.7,3249.5,0.30778]
[1736528560088,3.2078,3250.1,3249.6,0.30776]
[1736528560089,0.30776,3249.8,3249.6,0.30776]
[1736528560293,3.2078,3250.1,3249.2,3.2078]
[1736528560498,0.30778,3249.6,3249.4,0.30779]
[1736528560686,0.30779,3249.5,3249.3,0.3078]
[1736528560889,0.30779,3249.5,3249.2,3.2078]
[1736528561092,3.2078,3250.1,3249.6,0.30777]
[1736528561299,0.30773,3250.0,3249.5,0.30777]
[1736528561597,3.2078,3250.1,3249.5,0.30777]
[1736528561895,3.2078,3250.1,3249.6,0.30777]
[1736528562495,3.2078,3250.1,3249.2,3.2078]
[1736528562696,3.51553,3250.1,3249.9,0.30774]
[1736528563105,3.2078,3250.1,3249.2,3.2078]
[1736528563397,0.30775,3249.8,3249.6,0.30777]
[1736528563596,0.30774,3249.9,3249.7,0.30776]
[1736528563994,3.2078,3250.1,3249.2,3.2078]
[1736528564413,0.30774,3250.0,3249.8,0.30775]
[1736528564910,3.2078,3250.1,3250.0,0.30773]
[1736528565711,3.51553,3250.1,3249.9,0.30774]
[1736528565908,3.2078,3250.1,3249.6,3.2078]
[1736528566117,3.51553,3250.1,3249.9,0.30774]
[1736528566408,3.51553,3250.1,3250.0,0.30773]
[1736528566409,3.2078,3250.1,3250.0,0.30773]
[1736528567614,0.4787,3250.7,3250.0,3.2078]
[1736528567915,0.78637,3250.7,3250.0,3.2078]
[1736528568208,3.2078,3250.8,3250.7,0.30767]
[1736528568810,0.4343,3251.4,3250.7,40.8]
[1736528569009,0.454,3251.5,3251.4,0.3076]
[1736528569513,0.454,3251.5,3250.8,3.2078]
[1736528569514,0.454,3251.5,3251.3,0.30761]
[1736528570512,0.454,3251.5,3251.4,0.3076]
[1736528571006,0.454,3251.5,3251.3,0.3076]
[1736528571404,0.454,3251.5,3251.2,3.2078]
[1736528571612,0.7616,3251.5,3251.2,3.51541]
[1736528571809,0.30761,3251.4,3251.2,3.51541]
[1736528572016,0.454,3251.5,3251.2,3.2078]
[1736528572208,3.2078,3251.3,3250.6,3.2078]
[1736528572407,0.76906,3251.2,3250.6,3.2078]
[1736528572608,0.4646,3251.2,3250.2,3.2078]
[1736528572913,4.6358,3251.3,3251.2,0.30762]
[1736528572914,1.73561,3251.3,3251.2,0.30762]
[1736528573109,1.73561,3251.3,3250.7,0.76918]
[1736528573110,0.454,3251.5,3251.4,0.3076]
[1736528573312,3.2078,3252.3,3251.4,3.2078]
[1736528573503,12.05303627,3253.0,3252.2,3.2078]
[1736528573504,3.91466883,3252.7,3252.2,3.2078]
[1736528573702,0.30748,3252.7,3252.5,0.30749]
[1736528573910,11.12218891,3252.8,3252.5,40.8]
[1736528574114,3.2078,3252.7,3252.5,40.8]
[1736528574310,3.2078,3252.7,3252.2,3.2078]
[1736528574311,0.30752,3252.3,3252.2,3.2078]
[1736528574506,3.2078,3252.7,3252.1,0.30753]
[1736528574507,0.30751,3252.4,3252.1,0.30753]
[1736528574817,0.30752,3252.3,3252.1,0.30753]
[1736528575109,0.30751,3252.4,3252.2,0.30752]
[1736528575315,0.30753,3252.2,3252.0,0.30753]
[1736528575514,0.30751,3252.4,3252.1,0.30753]
[1736528575814,3.2078,3252.7,3251.8,3.2078]
[1736528575815,0.30749,3252.6,3251.8,3.2078]
[1736528576015,0.30749,3252.6,3251.5,1.24429]
[1736528576016,0.4651,3252.9,3252.2,6.1161902]
[1736528576215,0.4651,3252.9,3252.8,0.30747]
[1736528576418,0.4651,3252.9,3252.6,3.2078]
[1736528576612,0.4651,3252.9,3252.2,3.2078]
[1736528576910,3.6729,3252.9,3252.2,3.2078]
[1736528577217,0.30752,3252.3,3252.2,40.8]
[1736528577414,3.6729,3252.9,3251.7,3.2078]
[1736528577415,0.30753,3252.2,3251.9,0.30755]
[1736528577710,0.30753,3252.2,3251.7,3.2078]
[1736528577910,3.2078,3252.5,3251.7,44.0078]
[1736528578108,0.4616,3252.7,3252.4,0.3075]
[1736528578311,0.4616,3252.7,3252.3,0.30752]
[1736528578513,0.30751,3252.4,3252.2,0.30752]
[1736528578711,3.2078,3252.5,3252.1,3.2078]
[1736528579015,3.2078,3252.5,3251.7,3.2078]
[1736528579309,3.2078,3252.0,3251.3,0.3076]
[1736528579522,0.30759,3251.6,3251.3,0.30761]
[1736528579710,2.3648,3251.9,3251.2,3.2078]
[1736528579711,0.30758,3251.7,3251.2,3.2078]
[1736528579910,2.3648,3251.9,3251.2,3.2078]
[1736528580117,0.30757,3251.8,3251.6,0.30758]
[1736528580417,2.3648,3251.9,3251.2,3.2078]
[1736528580613,0.4363,3252.4,3251.7,3.2078]
[1736528580815,1.426,3252.6,3251.7,3.2078]
[1736528581010,0.3075,3252.5,3251.7,3.2078]
[1736528581212,0.3075,3252.5,3252.3,0.30751]
[1736528581515,1.73349,3252.6,3252.4,0.3075]
[1736528581714,0.30751,3252.4,3252.2,0.30752]
[1736528581913,0.30752,3252.3,3252.1,0.30753]
[1736528582116,0.30752,3252.3,3252.2,40.8]
[1736528582424,0.30754,3252.1,3251.9,0.30755]
[1736528582726,1.426,3252.6,3251.7,3.2078]
[1736528582912,1.426,3252.6,3250.8,0.69613311]
[1736528582913,0.30757,3251.7,3251.6,0.30758]
[1736528583117,0.30757,3251.7,3251.3,3.2078]
[1736528583118,0.30753,3252.2,3251.8,0.30756]
[1736528583318,0.4722,3252.2,3251.3,3.2078]
[1736528583717,1.426,3252.6,3251.8,3.2078]
[1736528584125,1.426,3252.6,3250.5,0.71796765]
[1736528584126,0.76875,3252.5,3251.3,3.2078]
[1736528584316,3.2078,3252.2,3251.3,3.2078]
[1736528584512,0.30759,3251.6,3251.3,3.2078]
[1736528584715,0.30757,3251.8,3251.3,3.2078]
[1736528584916,0.4565,3252.1,3251.3,3.2078]
[1736528585218,3.2078,3251.8,3250.9,3.2078]
[1736528585413,0.3076,3251.4,3251.3,0.3076]
[1736528585624,0.30761,3251.3,3251.2,0.30762]
[1736528585823,0.30761,3251.4,3251.3,0.30761]
[1736528586015,0.30761,3251.4,3250.9,3.2078]
[1736528586016,0.30761,3251.3,3251.2,0.30762]
[1736528586326,0.30758,3251.7,3251.0,0.7691]
[1736528586528,3.2078,3251.8,3251.7,0.30757]
[1736528586921,3.51536,3251.8,3251.7,0.30757]
[1736528587323,0.30758,3251.7,3251.4,0.3076]
[1736528587625,0.3076,3251.4,3251.3,40.8]
[1736528588124,3.51537,3251.8,3251.3,40.8]
[1736528588320,0.30757,3251.7,3251.5,0.30759]
[1736528588523,0.30757,3251.7,3251.6,0.30758]
[1736528588725,3.2078,3251.8,3251.4,0.3076]
[1736528588726,0.30759,3251.6,3251.4,0.3076]
[1736528588928,0.30759,3251.6,3251.5,0.30759]
[1736528589323,3.2078,3251.8,3251.3,40.8]
[1736528589324,0.3076,3251.4,3251.3,40.8]
[1736528590519,3.2078,3251.8,3251.3,40.8]
[1736528590720,0.9232,3252.0,3251.4,3.2078]
[1736528590922,0.76404,3252.1,3252.0,0.30754]
[1736528591119,0.30755,3251.9,3251.8,0.30756]
[1736528591518,0.4565,3252.1,3251.8,40.8]
[1736528591831,0.30755,3251.9,3251.8,41.10756]
[1736528592029,0.4709,3252.0,3251.8,40.8]
[1736528592225,0.30755,3251.9,3251.8,40.8]
[1736528592631,0.30755,3251.9,3251.8,41.10756]
[1736528592925,0.4709,3252.0,3251.8,41.10756]
[1736528592926,0.4709,3252.0,3251.8,40.8]
[1736528593127,0.4709,3252.0,3251.9,0.30755]
[1736528593532,0.30752,3252.3,3251.8,40.8]
[1736528593725,4.44182,3252.7,3251.8,40.8]
[1736528594425,0.30753,3252.2,3252.1,0.30753]
[1736528594634,4.44182,3252.7,3251.8,40.8]
[1736528594923,0.76877,3252.5,3251.8,40.8]
[1736528595127,0.30759,3251.5,3251.4,3.2078]
[1736528595327,0.30763,3251.1,3251.0,3.51543]
[1736528595636,0.20103,3251.1,3251.0,40.8]
[1736528595826,0.9179,3251.5,3251.0,40.8]
[1736528596125,0.30763,3251.2,3251.0,40.8]
[1736528596332,0.30763,3251.1,3251.0,41.10764]
[1736528596634,0.30763,3251.2,3251.1,0.30763]
[1736528596832,0.9179,3251.5,3251.0,40.8]
[1736528597230,0.30763,3251.1,3251.0,41.10763]
[1736528597429,0.30763,3251.1,3251.0,40.8]
[1736528597732,0.30763,3251.2,3251.1,0.30763]
[1736528598234,0.30759,3251.5,3251.4,0.3076]
[1736528598432,1.3654,3252.0,3251.2,3.2078]
[1736528598835,0.30759,3251.6,3251.4,0.30759]
[1736528599131,3.97665,3252.1,3251.2,3.2078]
[1736528599132,3.2078,3252.1,3251.2,3.2078]
[1736528599326,0.30759,3251.6,3251.5,0.30759]
[1736528600630,3.2078,3252.1,3251.3,0.4503]
[1736528600826,0.30756,3251.9,3251.8,0.30756]
[1736528601032,0.30755,3252.0,3251.9,0.30755]
[1736528601538,0.4383,3252.3,3251.9,40.8]
[1736528601736,0.74582,3252.3,3252.2,0.30753]
[1736528601934,0.30751,3252.4,3252.3,0.30752]
[1736528602135,0.30752,3252.3,3252.0,0.30754]
[1736528602336,0.30752,3252.3,3252.1,0.30753]
[1736528602530,3.2078,3252.5,3251.9,40.8]
[1736528602726,0.30754,3252.1,3251.9,40.8]
[1736528602926,3.2078,3252.5,3251.9,40.8]
[1736528603133,3.2078,3252.5,3252.0,0.30754]
[1736528603134,0.30753,3252.2,3252.0,0.30754]
[1736528603540,0.30751,3252.4,3251.9,41.10755]
[1736528603839,0.30754,3252.0,3251.9,41.10755]
[1736528604035,0.30754,3252.0,3251.9,40.8]
[1736528604841,0.30754,3252.0,3251.9,41.10755]
[1736528605238,3.2078,3252.5,3252.0,0.30754]
[1736528605438,0.30754,3252.1,3252.0,0.30754]
[1736528605629,0.30754,3252.0,3251.9,41.10755]
[1736528605834,3.2078,3252.5,3251.9,40.8]
[1736528606035,0.4569,3252.8,3252.1,3.2078]
[1736528606231,0.4569,3252.8,3252.7,0.30748]
[1736528606232,0.76437,3252.8,3252.7,0.30748]
[1736528606435,0.30746,3252.9,3252.8,0.30747]
[1736528606642,14.3582693,3253.3,3252.5,3.2078]
[1736528606936,0.30744,3253.2,3252.7,40.8]
[1736528607135,13.95984392,3253.3,3252.7,40.8]
[1736528607329,0.30745,3253.0,3252.9,0.30746]
[1736528607532,13.95984392,3253.3,3252.9,0.30746]
[1736528607734,13.95984392,3253.3,3252.7,40.8]
[1736528607933,3.2078,3253.3,3252.7,40.8]
[1736528608134,0.30745,3253.1,3253.0,0.30745]
[1736528608331,3.2078,3253.3,3253.2,0.30743]
[1736528608535,11.1504693,3253.4,3253.3,0.30742]
[1736528608740,10.75204392,3254.2,3253.3,3.2078]
[1736528608943,10.75204392,3254.2,3253.9,3.2157502]
[1736528609334,10.75204392,3254.2,3254.1,0.30735]
[1736528610246,0.3073,3254.6,3254.4,0.30731]
[1736528610444,0.4504,3254.9,3254.2,3.2078]
[1736528610643,11.52006392,3255.6,3254.8,0.30728]
[1736528610844,3.2078,3255.5,3254.6,3.2078]
[1736528611042,3.2078,3255.5,3255.0,0.30726]
[1736528611043,0.30725,3255.2,3255.0,0.30726]
[1736528611244,3.2078,3255.5,3254.6,3.2078]
[1736528611746,0.30725,3255.1,3254.9,0.30726]
[1736528611951,0.30725,3255.1,3254.9,0.30727]
[1736528612839,0.30726,3255.0,3254.8,0.30728]
[1736528613054,0.30725,3255.2,3254.7,0.30729]
[1736528613246,3.2078,3255.5,3254.6,3.2078]
[1736528613450,0.30726,3255.1,3254.6,3.2078]
[1736528613747,0.30727,3255.0,3254.8,0.30727]
[1736528614345,0.30725,3255.1,3254.9,0.30727]
[1736528614542,3.2078,3255.5,3254.7,0.4587]
[1736528614846,0.30725,3255.2,3254.8,0.30728]
[1736528615049,0.30725,3255.1,3254.9,0.30726]
[1736528615348,0.30725,3255.2,3254.8,0.30728]
[1736528615550,3.2078,3255.5,3254.9,40.8]
[1736528615742,0.30726,3255.1,3254.9,41.10727]
[1736528615944,0.30726,3255.0,3254.9,41.10727]
[1736528616247,3.2078,3255.5,3254.7,0.4587]
[1736528616450,3.6764602,3255.4,3254.3,0.436]
[1736528616646,3.97594,3255.1,3254.5,0.30731]
[1736528616847,0.30729,3254.7,3254.5,0.30731]
[1736528617046,3.2078,3255.1,3254.3,0.436]
[1736528617247,0.30729,3254.7,3254.5,0.3073]
[1736528617454,0.30729,3254.8,3254.6,0.30729]
[1736528617654,0.30729,3254.7,3254.5,3.5151]
[1736528617954,3.2078,3255.1,3254.5,3.2078]
[1736528618455,0.30726,3255.0,3254.6,0.30729]
[1736528618648,3.2078,3255.1,3254.6,0.30729]
[1736528618951,0.30729,3254.7,3254.5,3.2078]
[1736528619149,3.2078,3255.1,3254.7,0.30729]
[1736528619355,3.51506,3255.1,3254.9,0.30727]
[1736528619946,0.30727,3255.0,3254.5,3.2078]
[1736528620452,0.30727,3254.9,3254.8,0.30727]
[1736528620652,0.30728,3254.8,3254.6,0.30729]
[1736528620854,0.3073,3254.6,3254.5,3.2078]
[1736528621249,0.30729,3254.7,3254.5,3.5151]
[1736528621450,0.30729,3254.7,3254.6,0.3073]
[1736528621956,0.3073,3254.6,3254.5,3.2078]
[1736528622257,0.4471,3255.0,3254.5,3.2078]
[1736528622449,0.30729,3254.8,3254.6,0.3073]
[1736528622650,3.2078,3255.1,3254.5,3.2078]
[1736528622852,3.2078,3255.6,3254.7,2.9083902]
[1736528623054,0.30723,3255.4,3255.3,0.30723]
[1736528623246,3.2078,3255.6,3255.3,40.8]
[1736528623451,3.2078,3255.6,3255.5,0.30721]
[1736528623950,0.30722,3255.5,3255.4,0.30722]
[1736528624255,0.30722,3255.4,3255.3,40.8]
[1736528624451,0.30726,3255.1,3255.0,0.30726]
[1736528624753,0.30724,3255.2,3255.1,0.30724]
[1736528625055,3.2078,3255.6,3255.3,0.30723]
[1736528625056,0.30723,3255.4,3255.3,0.30723]
[1736528625454,0.30722,3255.4,3255.1,40.8]
[1736528625656,0.30722,3255.4,3255.2,0.30723]
[1736528626157,0.30722,3255.4,3255.1,40.8]
[1736528626556,3.2078,3255.6,3255.5,0.30721]
[1736528626856,0.30724,3255.2,3255.1,41.10725]
[1736528627052,3.2078,3255.6,3255.1,41.10725]
[1736528627253,0.30721,3255.5,3255.1,41.10725]
[1736528627455,3.2078,3255.6,3255.1,40.8]
[1736528627754,3.2179,3255.6,3255.5,0.30721]
[1736528628360,3.2179,3255.6,3255.1,40.8]
[1736528628656,0.30724,3255.3,3255.1,40.8]
[1736528628859,0.30724,3255.3,3255.2,0.30724]
[1736528629060,0.30723,3255.3,3255.2,0.30723]
[1736528629259,3.2179,3255.6,3255.1,40.8]
[1736528629461,0.30722,3255.5,3255.4,0.30721]
[1736528629763,0.0101,3255.6,3255.5,0.30721]
[1736528631259,0.3173,3255.6,3255.5,0.30721]
[1736528631863,0.30722,3255.5,3255.4,0.30722]
[1736528632064,0.0101,3255.6,3255.5,0.30721]
[1736528632558,0.3173,3255.6,3255.5,0.30721]
[1736528632762,0.30724,3255.2,3255.1,41.10725]
[1736528633369,0.30724,3255.2,3255.1,40.8]
[1736528634663,3.2179,3255.6,3255.1,40.8]
[1736528634864,0.30722,3255.5,3255.4,0.30722]
[1736528635459,3.2179,3255.6,3255.1,40.8]
[1736528635665,0.30724,3255.2,3255.1,40.8]
[1736528635965,0.30724,3255.2,3254.5,3.5151]
[1736528635966,0.30729,3254.7,3254.5,3.5151]
[1736528636164,0.30729,3254.7,3254.6,0.3073]
[1736528636467,0.30729,3254.7,3254.6,40.8]
[1736528636860,0.30729,3254.7,3254.6,41.1073]
[1736528637064,0.30729,3254.7,3254.6,40.8]
[1736528637471,3.2078,3254.8,3254.6,40.8]
[1736528637666,1.357,3255.1,3254.6,40.8]
[1736528637878,0.9218,3255.1,3254.9,0.30727]
[1736528638069,1.22906,3255.1,3254.9,0.30727]
[1736528638266,0.30726,3255.0,3254.6,40.8]
[1736528638466,0.30726,3255.0,3254.8,0.30728]
[1736528638763,0.30729,3254.8,3254.7,0.30729]
[1736528639067,0.30728,3254.9,3254.7,0.30729]
[1736528639275,0.30729,3254.7,3254.6,40.8]
[1736528639772,0.30728,3254.8,3254.7,0.30728]
[1736528639972,0.9218,3255.1,3254.6,40.8]
[1736528640174,0.30726,3255.0,3254.9,0.30726]
[1736528640360,0.30726,3255.0,3254.6,40.8]
[1736528640361,0.30727,3254.9,3254.8,0.30728]
[1736528640561,0.9218,3255.1,3255.0,0.30726]
[1736528640766,10.75204392,3255.4,3255.3,0.30723]
[1736528641069,11.05926392,3255.4,3255.3,0.30723]
[1736528641262,11.05926392,3255.4,3255.3,41.10723]
[1736528641263,10.75204392,3255.4,3255.3,41.10723]
[1736528641672,10.75204392,3255.4,3255.3,40.8]
[1736528641673,11.05926392,3255.4,3255.3,40.8]
[1736528641970,0.30722,3255.4,3255.3,40.8]
[1736528642173,0.5283729,3255.5,3254.7,0.30728]
[1736528642476,0.5283729,3255.4,3254.5,3.2078]
[1736528642666,0.30725,3255.2,3255.1,0.30725]